fUSD/lending_fUSD_20260626
["ID","MTS","AMOUNT","RATE_DAILY","PERIOD"]
[426499628,1782485445000,-170.83200377,0.00026111,2]
[426499629,1782485445000,-1173.23596094,0.00026138,2]
[426499630,1782485445000,-161.39689416,0.0002616,2]
[426499619,1782485445000,-2870.0,0.00026,2]
[426499579,1782485445000,-341.2534464,0.00024884,2]
[426499621,1782485445000,-1639.35,0.00026,7]
[426499624,1782485445000,-182.32254251,0.00026006,2]
[426499626,1782485445000,-216.46,0.00026027,7]
[426499627,1782485445000,-1409.93,0.00026111,2]
[426499625,1782485445000,-182.13,0.00026027,7]
[426499623,1782485445000,-256.61976175,0.00026006,2]
[426499631,1782485445000,-6290.34536639,0.0002618,2]
[426499635,1782485445000,-159.63261863,0.00026277,2]
[426499634,1782485445000,-201.24490319,0.00026277,2]
[426499633,1782485445000,-224.95174245,0.00026277,2]
[426499632,1782485445000,-4607.94,0.00026268,7]
[426499638,1782485445000,-199.02243494,0.00026278,2]
[426499636,1782485445000,-231.75893385,0.00026277,2]
[426499637,1782485445000,-378.07254209,0.00026278,2]
[426499639,1782485445000,-327.19672951,0.00026278,2]
[426499617,1782485445000,-3600.0,0.00025932,3]
[426499614,1782485445000,-359529.30611531,0.000258,2]
[426499622,1782485445000,-651.0,0.00026004,2]
[426499616,1782485445000,-1173.23596093,0.00025864,2]
[426499611,1782485445000,-397.49284377,0.00025722,2]
[426499592,1782485445000,-1173.23596093,0.0002559,2]
[426499583,1782485445000,-198.74642189,0.00024884,2]
[426499585,1782485445000,-2980.0,0.00025,2]
[426499591,1782485445000,-44146.55996187,0.00025542,2]
[426499587,1782485445000,-1173.23596093,0.00025042,2]
[426499582,1782485445000,-312.75745076,0.00024884,2]
[426499584,1782485445000,-6290.34536639,0.00024927,2]
[426499588,1782485445000,-1114.2189482,0.00025056,2]
[426499589,1782485445000,-1173.23596093,0.00025316,2]
[426499590,1782485445000,-202.94644598,0.00025397,2]
[426499586,1782485445000,-150.0,0.00025,2]
[426499594,1782485445000,-209.0,0.00025641,5]
[426499577,1782485445000,-228.2648092,0.00024884,2]
[426499604,1782485445000,-404.34773637,0.00025722,2]
[426499605,1782485445000,-456.5296184,0.00025722,2]
[426499606,1782485445000,-476.23781292,0.00025722,2]
[426499608,1782485445000,-430.9576833,0.00025722,2]
[426499599,1782485445000,-415.59447636,0.00025719,2]
[426499602,1782485445000,-484.03242649,0.00025722,2]
[426499603,1782485445000,-500.81568621,0.00025722,2]
[426499610,1782485445000,-469.13617614,0.00025722,2]
[426499600,1782485445000,-466.93873934,0.00025719,2]
[426499598,1782485445000,-409.18517455,0.00025719,2]
[426499595,1782485445000,-150.0,0.00025675,7]
[426499596,1782485445000,-207.99377703,0.00025719,2]
[426499597,1782485445000,-411.30933412,0.00025719,2]
[426499601,1782485445000,-416.66119242,0.00025722,2]
[426499680,1782485446000,-327.74596883,0.0002628,2]
[426499675,1782485446000,-373.8481132,0.0002628,2]
[426499677,1782485446000,-383.47816784,0.0002628,2]
[426499678,1782485446000,-667.75424828,0.0002628,2]
[426499674,1782485446000,-346.02611204,0.0002628,2]
[426499668,1782485446000,-331.62360172,0.0002628,2]
[426499673,1782485446000,-332.46210528,0.0002628,2]
[426499672,1782485446000,-326.61993898,0.0002628,2]
[426499676,1782485446000,-354.49444558,0.0002628,2]
[426499683,1782485446000,-354.28638187,0.0002628,2]
[426499670,1782485446000,-645.37656865,0.0002628,2]
[426499682,1782485446000,-361.90019991,0.0002628,2]
[426499681,1782485446000,-389.17223425,0.0002628,2]
[426499688,1782485446000,-682.50689281,0.0002628,2]
[426499685,1782485446000,-173.07526783,0.0002628,2]
[426499686,1782485446000,-684.7944276,0.0002628,2]
[426499690,1782485446000,-337.62124937,0.0002628,2]
[426499689,1782485446000,-177.06887181,0.0002628,2]
[426499687,1782485446000,-634.98375057,0.0002628,2]
[426499692,1782485446000,-207.35989978,0.0002628,2]
[426499703,1782485446000,-290.8899059,0.00026397,2]
[426499702,1782485446000,-202.94644598,0.00026397,2]
[426499691,1782485446000,-176.3200614,0.0002628,2]
[426499693,1782485446000,-646.43652494,0.0002628,2]
[426499696,1782485446000,-625.51490151,0.00026281,2]
[426499684,1782485446000,-395.5182285,0.0002628,2]
[426499671,1782485446000,-225.60141123,0.0002628,2]
[426499695,1782485446000,-308.02504546,0.00026281,2]
[426499679,1782485446000,-606.52160455,0.0002628,2]
[426499641,1782485446000,-415.98755407,0.00026278,2]
[426499642,1782485446000,-616.96400118,0.00026278,2]
[426499640,1782485446000,-406.45372923,0.00026278,2]
[426499654,1782485446000,-322.63337688,0.00026278,2]
[426499644,1782485446000,-317.60458123,0.00026278,2]
[426499655,1782485446000,-204.72981932,0.00026278,2]
[426499643,1782485446000,-178.18053159,0.00026278,2]
[426499647,1782485446000,-310.12526559,0.00026278,2]
[426499646,1782485446000,-341.7187233,0.00026278,2]
[426499652,1782485446000,-325.3028469,0.00026278,2]
[426499649,1782485446000,-613.77776182,0.00026278,2]
[426499653,1782485446000,-387.56389702,0.00026278,2]
[426499669,1782485446000,-624.99178862,0.0002628,2]
[426499648,1782485446000,-375.33949264,0.00026278,2]
[426499651,1782485446000,-386.56043326,0.00026278,2]
[426499658,1782485446000,-204.14144427,0.00026278,2]
[426499656,1782485446000,-394.31387541,0.00026278,2]
[426499660,1782485446000,-205.38859122,0.0002628,2]
[426499659,1782485446000,-622.58498579,0.00026278,2]
[426499661,1782485446000,-219.88939533,0.0002628,2]
[426499657,1782485446000,-327.36816012,0.00026278,2]
[426499667,1782485446000,-375.76389128,0.0002628,2]
[426499662,1782485446000,-335.8444851,0.0002628,2]
[426499665,1782485446000,-332.20931171,0.0002628,2]
[426499666,1782485446000,-331.20317723,0.0002628,2]
[426499664,1782485446000,-228.54514201,0.0002628,2]
[426499650,1782485446000,-623.39171454,0.00026278,2]
[426499697,1782485446000,-418.64457858,0.00026281,2]
[426499663,1782485446000,-156.06982587,0.0002628,2]
[426499694,1782485446000,-600.58948608,0.00026281,2]
[426499731,1782485446000,-169.04048507,0.00027044,2]
[426499730,1782485446000,-1230.0,0.00027003,2]
[426499729,1782485446000,-218.09634758,0.00026991,2]
[426499728,1782485446000,-169.49359139,0.00026991,2]
[426499732,1782485446000,-976.0,0.00027044,2]
[426499738,1782485446000,-2678.07,0.00027315,2]
[426499737,1782485446000,-172.27434482,0.00027315,2]
[426499748,1782485446000,-760.106787,0.00027397,2]
[426499750,1782485446000,-760.106787,0.00027397,2]
[426499741,1782485446000,-206.2460914,0.00027397,2]
[426499747,1782485446000,-760.106787,0.00027397,2]
[426499740,1782485446000,-796.83,0.00027397,2]
[426499733,1782485446000,-170.25747684,0.00027046,2]
[426499746,1782485446000,-760.106787,0.00027397,2]
[426499743,1782485446000,-150.0,0.00027397,2]
[426499739,1782485446000,-152.0,0.00027364,5]
[426499745,1782485446000,-151.56702897,0.00027397,10]
[426499742,1782485446000,-340.77584746,0.00027397,2]
[426499762,1782485446000,-760.106787,0.00027397,2]
[426499763,1782485446000,-760.106787,0.00027397,2]
[426499751,1782485446000,-760.106787,0.00027397,2]
[426499753,1782485446000,-760.106787,0.00027397,2]
[426499755,1782485446000,-760.106787,0.00027397,2]
[426499759,1782485446000,-760.106787,0.00027397,2]
[426499761,1782485446000,-760.106787,0.00027397,2]
[426499698,1782485446000,-315.00777139,0.00026281,2]
[426499744,1782485446000,-1500.0,0.00027397,2]
[426499727,1782485446000,-239.67424061,0.00026991,2]
[426499757,1782485446000,-760.106787,0.00027397,2]
[426499725,1782485446000,-5400.0,0.00026969,10]
[426499700,1782485446000,-413.88564107,0.00026281,2]
[426499701,1782485446000,-507.53,0.00026302,2]
[426499699,1782485446000,-596.23926566,0.00026281,2]
[426499704,1782485446000,-1814.46,0.0002643,2]
[426499706,1782485446000,-572.91,0.0002651,7]
[426499708,1782485446000,-400.0,0.0002677,2]
[426499713,1782485446000,-181.72826808,0.000268,2]
[426499726,1782485446000,-672.14,0.00026991,2]
[426499705,1782485446000,-971.01239052,0.00026507,2]
[426499707,1782485446000,-2644.21,0.0002651,2]
[426499711,1782485446000,-1409.93,0.00026796,2]
[426499712,1782485446000,-757214.21901924,0.000268,2]
[426499710,1782485446000,-155.75374651,0.0002677,2]
[426499709,1782485446000,-700.0,0.0002677,2]
[426499716,1782485446000,-168.02739939,0.00026834,2]
[426499736,1782485446000,-2334.0,0.0002712,3]
[426499714,1782485446000,-247.05208159,0.000268,2]
[426499735,1782485446000,-1814.46,0.00027115,2]
[426499734,1782485446000,-291.06,0.00027079,7]
[426499721,1782485446000,-213.65876686,0.00026838,2]
[426499722,1782485446000,-806.72071081,0.00026839,2]
[426499720,1782485446000,-809.90107737,0.00026837,2]
[426499724,1782485446000,-853.13361601,0.00026839,2]
[426499717,1782485446000,-218.12216005,0.00026836,2]
[426499719,1782485446000,-786.01191808,0.00026837,2]
[426499718,1782485446000,-778.23123224,0.00026836,2]
[426499715,1782485446000,-261.0,0.00026818,5]
[426499723,1782485446000,-793.72968821,0.00026839,2]
[426499818,1782485447000,-355.4199043,0.00027397,2]
[426499820,1782485447000,-419.61809819,0.00027397,2]
[426499819,1782485447000,-209.8090491,0.00027397,2]
[426499824,1782485447000,-1000.0,0.000274,2]
[426499814,1782485447000,-154.82915671,0.00027397,2]
[426499813,1782485447000,-14080.94,0.00027397,10]
[426499816,1782485447000,-464.48747013,0.00027397,2]
[426499828,1782485447000,-1000.0,0.000274,2]
[426499826,1782485447000,-1391.33,0.000274,2]
[426499815,1782485447000,-309.65831342,0.00027397,2]
[426499827,1782485447000,-159.9783587,0.000274,2]
[426499817,1782485447000,-619.31662684,0.00027397,2]
[426499840,1782485447000,-2334.0,0.0002758,3]
[426499821,1782485447000,-250.0,0.00027397,2]
[426499829,1782485447000,-1657.03,0.000274,2]
[426499833,1782485447000,-151.56702897,0.00027443,15]
[426499831,1782485447000,-151.56702897,0.00027403,12]
[426499834,1782485447000,-1409.93,0.00027481,2]
[426499837,1782485447000,-500.0,0.000275,7]
[426499835,1782485447000,-239.58122879,0.00027481,2]
[426499836,1782485447000,-178.45246892,0.00027481,2]
[426499839,1782485447000,-151.56702897,0.00027551,17]
[426499830,1782485447000,-1112.29,0.000274,7]
[426499838,1782485447000,-591.0,0.000275,7]
[426499811,1782485447000,-215.57,0.00027397,2]
[426499822,1782485447000,-1123.36,0.000274,7]
[426499798,1782485447000,-223.52674,0.00027397,2]
[426499789,1782485447000,-223.52674,0.00027397,2]
[426499812,1782485447000,-300.0,0.00027397,2]
[426499842,1782485447000,-2334.0,0.000276,3]
[426499766,1782485447000,-760.106787,0.00027397,2]
[426499765,1782485447000,-760.106787,0.00027397,2]
[426499770,1782485447000,-760.106787,0.00027397,2]
[426499768,1782485447000,-760.106787,0.00027397,2]
[426499772,1782485447000,-760.106787,0.00027397,2]
[426499778,1782485447000,-760.106781,0.00027397,2]
[426499776,1782485447000,-760.106787,0.00027397,2]
[426499780,1782485447000,-223.52674,0.00027397,2]
[426499786,1782485447000,-223.52674,0.00027397,2]
[426499794,1782485447000,-223.52674,0.00027397,2]
[426499784,1782485447000,-223.52674,0.00027397,2]
[426499807,1782485447000,-223.52674,0.00027397,2]
[426499774,1782485447000,-760.106787,0.00027397,2]
[426499790,1782485447000,-223.52674,0.00027397,2]
[426499792,1782485447000,-223.52674,0.00027397,2]
[426499796,1782485447000,-223.52674,0.00027397,2]
[426499809,1782485447000,-223.52674,0.00027397,2]
[426499803,1782485447000,-223.52674,0.00027397,2]
[426499804,1782485447000,-223.52674,0.00027397,2]
[426499805,1782485447000,-223.52674,0.00027397,2]
[426499802,1782485447000,-223.52674,0.00027397,2]
[426499808,1782485447000,-223.52674,0.00027397,2]
[426499800,1782485447000,-223.52674,0.00027397,2]
[426499810,1782485447000,-223.526732,0.00027397,2]
[426499806,1782485447000,-223.52674,0.00027397,2]
[426499782,1782485447000,-223.52674,0.00027397,2]
[426499841,1782485447000,-2334.0,0.000276,3]
[426499843,1782485447000,-796.83,0.00027608,2]
[426499844,1782485447000,-933.87747869,0.00027674,2]
[426499874,1782485447000,-800.0,0.00027798,2]
[426499875,1782485447000,-800.0,0.00027798,2]
[426499880,1782485447000,-800.0,0.00027798,2]
[426499881,1782485447000,-800.0,0.00027798,2]
[426499878,1782485447000,-810.0,0.00027798,2]
[426499879,1782485447000,-800.0,0.00027798,2]
[426499894,1782485447000,-796.83,0.00027819,2]
[426499883,1782485447000,-800.0,0.00027798,2]
[426499893,1782485447000,-1087.0221566,0.000278,2]
[426499884,1782485447000,-800.0,0.00027798,2]
[426499882,1782485447000,-800.0,0.00027798,2]
[426499886,1782485447000,-800.0,0.00027798,2]
[426499877,1782485447000,-800.0,0.00027798,2]
[426499889,1782485447000,-589.0,0.00027798,2]
[426499890,1782485447000,-1814.47,0.000278,2]
[426499891,1782485447000,-1087.02215661,0.000278,2]
[426499887,1782485447000,-800.0,0.00027798,2]
[426499888,1782485447000,-800.0,0.00027798,2]
[426499896,1782485447000,-1112.29,0.000279,7]
[426499897,1782485447000,-160.0,0.000279,3]
[426499895,1782485447000,-4607.94,0.00027835,7]
[426499899,1782485447000,-2334.0,0.0002794,3]
[426499901,1782485447000,-261.0,0.00027994,5]
[426499900,1782485447000,-774.14578355,0.00027956,2]
[426499898,1782485447000,-2334.0,0.0002794,3]
[426499852,1782485447000,-1215.45686285,0.00027715,2]
[426499885,1782485447000,-800.0,0.00027798,2]
[426499873,1782485447000,-800.0,0.00027798,2]
[426499892,1782485447000,-1087.0221566,0.000278,2]
[426499872,1782485447000,-800.0,0.00027798,2]
[426499876,1782485447000,-800.0,0.00027798,2]
[426499853,1782485447000,-785.0,0.00027715,2]
[426499854,1782485447000,-785.0,0.00027715,2]
[426499846,1782485447000,-672.14,0.00027676,2]
[426499845,1782485447000,-943.21430169,0.00027674,2]
[426499847,1782485447000,-213.38887745,0.00027676,2]
[426499849,1782485447000,-952.47562585,0.00027677,2]
[426499851,1782485447000,-1639.35,0.000277,7]
[426499848,1782485447000,-968.06485298,0.00027677,2]
[426499858,1782485447000,-350.0,0.00027786,10]
[426499855,1782485447000,-785.0,0.00027715,2]
[426499860,1782485447000,-800.0,0.00027798,2]
[426499857,1782485447000,-151.56702897,0.00027763,20]
[426499850,1782485447000,-1023.76033921,0.00027677,2]
[426499871,1782485447000,-800.0,0.00027798,2]
[426499856,1782485447000,-189.0,0.0002776,3]
[426499870,1782485447000,-800.0,0.00027798,2]
[426499868,1782485447000,-800.0,0.00027798,2]
[426499863,1782485447000,-800.0,0.00027798,2]
[426499869,1782485447000,-800.0,0.00027798,2]
[426499867,1782485447000,-800.0,0.00027798,2]
[426499866,1782485447000,-800.0,0.00027798,2]
[426499864,1782485447000,-800.0,0.00027798,2]
[426499862,1782485447000,-800.0,0.00027798,2]
[426499859,1782485447000,-800.0,0.00027798,2]
[426499861,1782485447000,-800.0,0.00027798,2]
[426499865,1782485447000,-800.0,0.00027798,2]
[426499945,1782485448000,-232.0,0.00028618,30]
[426499941,1782485448000,-800.0,0.000285,2]
[426499939,1782485448000,-800.0,0.000285,2]
[426499940,1782485448000,-800.0,0.000285,2]
[426499942,1782485448000,-407.81504829,0.00028548,30]
[426499938,1782485448000,-800.0,0.000285,2]
[426499936,1782485448000,-500.0,0.00028481,60]
[426499932,1782485448000,-160.0,0.0002836,3]
[426499944,1782485448000,-158.0,0.00028618,30]
[426499935,1782485448000,-796.83,0.00028451,2]
[426499934,1782485448000,-160.0,0.00028408,3]
[426499946,1782485448000,-156.0,0.00028618,30]
[426499937,1782485448000,-171.44,0.00028493,2]
[426499956,1782485448000,-152.0,0.0002862,30]
[426499958,1782485448000,-156.0,0.0002862,30]
[426499951,1782485448000,-1175.76814375,0.00028619,2]
[426499948,1782485448000,-785.0,0.00028619,2]
[426499947,1782485448000,-785.0,0.00028619,2]
[426499949,1782485448000,-785.0,0.00028619,2]
[426499957,1782485448000,-582.0,0.0002862,30]
[426499953,1782485448000,-1300.1056,0.00028619,2]
[426499952,1782485448000,-785.0,0.00028619,2]
[426499954,1782485448000,-1314.2834,0.00028619,2]
[426499955,1782485448000,-197.0,0.0002862,30]
[426499969,1782485448000,-2678.07,0.00028685,2]
[426499959,1782485448000,-198.0,0.0002862,30]
[426499970,1782485448000,-160.0,0.0002871,3]
[426499943,1782485448000,-241347.58010256,0.00028595,2]
[426499950,1782485448000,-785.0,0.00028619,2]
[426499933,1782485448000,-1112.29,0.000284,7]
[426499907,1782485448000,-27196.01792753,0.00028,5]
[426499930,1782485448000,-160.0,0.0002836,3]
[426499961,1782485448000,-157.0,0.0002862,30]
[426499906,1782485448000,-800.0,0.00028,2]
[426499903,1782485448000,-800.0,0.00028,2]
[426499904,1782485448000,-800.0,0.00028,2]
[426499902,1782485448000,-2750.0,0.00028,2]
[426499905,1782485448000,-800.0,0.00028,2]
[426499908,1782485448000,-785.0,0.00028016,2]
[426499909,1782485448000,-785.0,0.00028016,2]
[426499919,1782485448000,-796.83,0.0002824,2]
[426499911,1782485448000,-785.0,0.00028016,2]
[426499910,1782485448000,-785.0,0.00028016,2]
[426499918,1782485448000,-3982.011545,0.00028189,2]
[426499917,1782485448000,-151.56702897,0.00028111,22]
[426499931,1782485448000,-160.0,0.0002836,3]
[426499914,1782485448000,-785.0,0.00028016,2]
[426499915,1782485448000,-785.0,0.00028016,2]
[426499916,1782485448000,-796.83,0.0002803,2]
[426499913,1782485448000,-785.0,0.00028016,2]
[426499920,1782485448000,-7201.0,0.00028266,10]
[426499922,1782485448000,-785.0,0.00028318,2]
[426499924,1782485448000,-785.0,0.00028318,2]
[426499926,1782485448000,-785.0,0.00028318,2]
[426499923,1782485448000,-785.0,0.00028318,2]
[426499925,1782485448000,-785.0,0.00028318,2]
[426499927,1782485448000,-785.0,0.00028318,2]
[426499929,1782485448000,-1302.0,0.00028344,2]
[426499928,1782485448000,-785.0,0.00028318,2]
[426499921,1782485448000,-160.0,0.00028315,3]
[426499912,1782485448000,-785.0,0.00028016,2]
[426499960,1782485448000,-157.0,0.0002862,30]
[426500014,1782485448000,-25000.0,0.00029,7]
[426499968,1782485448000,-796.83,0.00028662,2]
[426500004,1782485448000,-196.59,0.00029,7]
[426499997,1782485448000,-2334.0,0.00028955,3]
[426499999,1782485448000,-407.81504829,0.00028986,30]
[426500005,1782485448000,-150.0,0.00029,7]
[426500007,1782485448000,-3040.0,0.00029,2]
[426500002,1782485448000,-2334.0,0.00028995,3]
[426499998,1782485448000,-160.0,0.00028955,3]
[426500008,1782485448000,-192.0168707,0.00029,2]
[426500001,1782485448000,-160.0,0.00028995,3]
[426500006,1782485448000,-1400.0,0.00029,2]
[426500003,1782485448000,-280.85,0.00029,7]
[426500010,1782485448000,-800.0,0.00029,2]
[426500021,1782485448000,-407.81504829,0.00029123,30]
[426500000,1782485448000,-25000.0,0.00028991,7]
[426500020,1782485448000,-363426.0,0.0002912,20]
[426500013,1782485448000,-13508.2653068,0.00029,2]
[426500011,1782485448000,-800.0,0.00029,2]
[426500015,1782485448000,-2755.06916993,0.00029,7]
[426500012,1782485448000,-800.0,0.00029,2]
[426500016,1782485448000,-1623.3,0.00029,2]
[426500018,1782485448000,-160.0,0.00029048,3]
[426500017,1782485448000,-160.0,0.0002903,3]
[426500019,1782485448000,-796.83,0.00029083,2]
[426500024,1782485448000,-785.0,0.00029221,2]
[426500022,1782485448000,-1639.35,0.000292,7]
[426500025,1782485448000,-785.0,0.00029221,2]
[426499964,1782485448000,-694.0,0.0002862,30]
[426500023,1782485448000,-2334.0,0.0002922,3]
[426500009,1782485448000,-800.0,0.00029,2]
[426499996,1782485448000,-1194.38706241,0.00028934,2]
[426500026,1782485448000,-407.81504829,0.00029233,30]
[426499991,1782485448000,-785.0,0.0002892,2]
[426499993,1782485448000,-1089.52372514,0.00028931,2]
[426499962,1782485448000,-162.0,0.0002862,30]
[426499965,1782485448000,-151.56702897,0.00028631,25]
[426499963,1782485448000,-170.0,0.0002862,30]
[426499967,1782485448000,-407.81504829,0.00028658,30]
[426499971,1782485448000,-152.0,0.00028744,6]
[426499972,1782485448000,-150.0,0.00028767,2]
[426499980,1782485448000,-257.55,0.000288,30]
[426499973,1782485448000,-500.0,0.00028767,2]
[426499974,1782485448000,-219.78489555,0.00028767,2]
[426499982,1782485448000,-971.01239052,0.00028829,2]
[426499976,1782485448000,-407.81504829,0.00028767,30]
[426499975,1782485448000,-250.0,0.00028767,4]
[426499979,1782485448000,-928.97494026,0.00028794,2]
[426499966,1782485448000,-2334.0,0.00028655,3]
[426499977,1782485448000,-160.0,0.00028768,3]
[426499978,1782485448000,-160.0,0.00028789,3]
[426499992,1782485448000,-785.0,0.0002892,2]
[426499990,1782485448000,-785.0,0.0002892,2]
[426499989,1782485448000,-785.0,0.0002892,2]
[426499987,1782485448000,-1112.29,0.000289,7]
[426499985,1782485448000,-796.83,0.00028872,2]
[426499988,1782485448000,-785.0,0.0002892,2]
[426499995,1782485448000,-1111.22156349,0.00028934,2]
[426499994,1782485448000,-1254.61710677,0.00028931,2]
[426499984,1782485448000,-150.0,0.00028855,2]
[426499986,1782485448000,-407.81504829,0.00028877,30]
[426499981,1782485448000,-2334.0,0.00028805,3]
[426499983,1782485448000,-150.0,0.00028855,2]
[426500066,1782485449000,-407.81504829,0.00029808,30]
[426500069,1782485449000,-400.0,0.0002987,2]
[426500067,1782485449000,-400.0,0.0002987,2]
[426500063,1782485449000,-796.83,0.00029715,2]
[426500064,1782485449000,-2334.0,0.00029749,3]
[426500059,1782485449000,-160.0,0.00029625,3]
[426500060,1782485449000,-1627.0,0.00029644,2]
[426500061,1782485449000,-2334.0,0.00029688,3]
[426500065,1782485449000,-1438.0,0.00029749,3]
[426500062,1782485449000,-407.81504829,0.00029699,30]
[426500058,1782485449000,-694.0,0.0002962,30]
[426500057,1782485449000,-170.0,0.0002962,30]
[426500070,1782485449000,-700.0,0.0002987,2]
[426500074,1782485449000,-400.0,0.0002997,2]
[426500073,1782485449000,-796.83,0.00029926,2]
[426500072,1782485449000,-591.0,0.000299,7]
[426500075,1782485449000,-700.0,0.0002997,2]
[426500079,1782485449000,-800.0,0.0003,2]
[426500081,1782485449000,-800.0,0.0003,2]
[426500078,1782485449000,-734.29,0.0003,92]
[426500080,1782485449000,-800.0,0.0003,2]
[426500077,1782485449000,-827.15231792,0.0003,3]
[426500082,1782485449000,-800.0,0.0003,2]
[426500076,1782485449000,-13893.5168063,0.0003,7]
[426500084,1782485449000,-10218.79058059,0.0003,5]
[426500068,1782485449000,-700.0,0.0002987,2]
[426500095,1782485449000,-22500.0,0.0003,2]
[426500071,1782485449000,-1112.29,0.000299,7]
[426500054,1782485449000,-157.0,0.0002962,30]
[426500043,1782485449000,-2334.0,0.00029605,3]
[426500056,1782485449000,-162.0,0.0002962,30]
[426500096,1782485449000,-12500.0,0.0003,2]
[426500028,1782485449000,-407.81504829,0.00029342,30]
[426500029,1782485449000,-151.56702897,0.00029357,27]
[426500027,1782485449000,-796.83,0.00029294,2]
[426500033,1782485449000,-209.0,0.00029405,10]
[426500031,1782485449000,-1112.29,0.000294,7]
[426500030,1782485449000,-6734.8839654,0.00029365,2]
[426500032,1782485449000,-4607.94,0.00029402,7]
[426500034,1782485449000,-407.81504829,0.00029452,30]
[426500035,1782485449000,-800.0,0.000295,2]
[426500045,1782485449000,-232.0,0.00029618,30]
[426500036,1782485449000,-800.0,0.000295,2]
[426500038,1782485449000,-800.0,0.000295,2]
[426500037,1782485449000,-800.0,0.000295,2]
[426500040,1782485449000,-407.81504829,0.00029562,30]
[426500041,1782485449000,-9001.0,0.00029562,10]
[426500042,1782485449000,-1123.36,0.000296,7]
[426500044,1782485449000,-158.0,0.00029618,30]
[426500039,1782485449000,-796.83,0.00029505,2]
[426500046,1782485449000,-156.0,0.00029618,30]
[426500048,1782485449000,-197.0,0.0002962,30]
[426500049,1782485449000,-152.0,0.0002962,30]
[426500052,1782485449000,-198.0,0.0002962,30]
[426500050,1782485449000,-582.0,0.0002962,30]
[426500051,1782485449000,-156.0,0.0002962,30]
[426500055,1782485449000,-161.0,0.0002962,30]
[426500053,1782485449000,-402.88860804,0.0002962,7]
[426500047,1782485449000,-291.06,0.00029619,7]
[426500094,1782485449000,-25000.0,0.0003,2]
[426500140,1782485449000,-500.0,0.00030136,2]
[426500086,1782485449000,-9999.97,0.0003,2]
[426500117,1782485449000,-22500.0,0.00030125,2]
[426500119,1782485449000,-12500.0,0.00030125,2]
[426500120,1782485449000,-22500.0,0.00030125,2]
[426500125,1782485449000,-30130.75282465,0.0003013,2]
[426500124,1782485449000,-12817.0826963,0.0003013,2]
[426500126,1782485449000,-1745.74992856,0.0003013,30]
[426500135,1782485449000,-500.0,0.00030136,2]
[426500131,1782485449000,-500.0,0.00030136,2]
[426500136,1782485449000,-500.0,0.00030136,2]
[426500128,1782485449000,-500.0,0.00030136,2]
[426500132,1782485449000,-500.0,0.00030136,2]
[426500134,1782485449000,-500.0,0.00030136,2]
[426500133,1782485449000,-500.0,0.00030136,2]
[426500130,1782485449000,-500.0,0.00030136,2]
[426500129,1782485449000,-500.0,0.00030136,2]
[426500127,1782485449000,-500.0,0.00030136,2]
[426500138,1782485449000,-500.0,0.00030136,2]
[426500142,1782485449000,-500.0,0.00030136,2]
[426500137,1782485449000,-500.0,0.00030136,2]
[426500143,1782485449000,-500.0,0.00030136,2]
[426500139,1782485449000,-500.0,0.00030136,2]
[426500141,1782485449000,-500.0,0.00030136,2]
[426500144,1782485449000,-500.0,0.00030136,2]
[426500148,1782485449000,-916.85,0.00030136,2]
[426500146,1782485449000,-283.11799113,0.00030136,2]
[426500147,1782485449000,-916.85,0.00030136,2]
[426500145,1782485449000,-500.0,0.00030136,2]
[426500115,1782485449000,-152.0,0.00030125,7]